Cogmind - Beta 15 @@@ ROGUE MODE // 2025.10.16 @ 00:38:02 Player: Togure Result: Destroyed by NP-KCC(R) with Subdweller Laser Performance ------------- Evolutions (0) 0 Regions Visited (2) 400 Robots Destroyed (6) 30 Value Destroyed (158) 158 Prototype IDs (0) 0 Alien Tech Used (0) 0 Bonus (0) 0 TOTAL SCORE: 588 Bonus ------- None Cogmind --------- Core Integrity 0/250 Matter 299/300 Energy 100/100 System Corruption 0% Temperature Cool (6) Movement Core (700) Ox13 Location -10/Subcaves Parts ------- > --- POWER (1) -------- (None) > --- PROPULSION (2) --- (None) > --- UTILITY (2) ------ Light Humpback > --- WEAPON (2) ------- Light Assault Rifle > --- INVENTORY (25) --- Medium Laser Scrap Shield Fragment (48) Scrap Shield Fragment (42) Scrap Shield Fragment (41) Peak State ------------ > --- POWER ------------ Ion Engine > --- PROPULSION ------- Aluminum Leg Subdweller Monowheel > --- UTILITY ---------- Large Storage Unit > --- WEAPON ----------- Medium Laser Light Assault Rifle > --- INVENTORY -------- Light Ion Engine Aluminum Leg Subdweller Monowheel Small Storage Unit Light Humpback Humpback Machine Analyzer Subdweller Optics Small Laser Welding Torch Scrap Shield Fragment Scrap Shield Fragment [Rating: 9] Favorites ----------- Power Ion Engine Engine Ion Engine Propulsion Aluminum Leg Leg Aluminum Leg Wheel Subdweller Monowheel Utility Light Humpback Device Tractor Beam Storage Light Humpback Weapon Light Assault Rifle Energy Gun Medium Laser Ballistic Gun Light Assault Rifle Build | -11 -10 -10 ------- Run | Yrd Mat Sub Slots Evolved . | . . . Power . | . . . Propulsion . | . . . Utility . | . . . Weapon . | . . . Parts Attached 12 | 7 1 4 Power 1 | 1 . . Engine 1 | 1 . . Core . | . . . Reactor . | . . . Propulsion 4 | 2 . 2 Treads . | . . . Leg 2 | 2 . . Wheel 2 | . . 2 Hover . | . . . Flight . | . . . Utility 4 | 2 1 1 Device 1 | 1 . . Storage 3 | 1 1 1 Processor . | . . . Hackware . | . . . Protection . | . . . Artifact . | . . . Weapon 3 | 2 . 1 Energy Gun 2 | 1 . 1 Energy Cannon . | . . . Ballistic Gun 1 | 1 . . Ballistic Cannon . | . . . Launcher . | . . . Special Weapon . | . . . Impact Weapon . | . . . Slashing Weapon . | . . . Piercing Weapon . | . . . Special Melee Weapon . | . . . Unidentified Prototypes . | . . . Parts Lost 5 | . . 5 Power 1 | . . 1 Propulsion 2 | . . 2 Utility 1 | . . 1 Weapon 1 | . . 1 Highest Loss Streak 3 | . . 3 To Critical Strikes . | . . . Average Backups 2 | 1 3 2 Power . | . 1 . Propulsion . | . . . Utility . | . . . Weapon . | 1 1 . Tool/Special . | . . . Unused Backups . | . . . Power . | . . . Propulsion . | . . . Utility . | . . . Weapon . | . . . Tool/Special . | . . . Average Slot Usage (%) 85 | . 100 80 Engine 13 | . 14 13 Leg 14 | . 28 8 Wheel 8 | . . 12 Device 6 | . 14 2 Storage 14 | . 14 14 Energy Gun 13 | . 14 13 Ballistic Gun 14 | . 14 14 Peak Build Rating 9 | 7 7 9 Average Rating 7 | 3 7 8 On Entrance 4 | . 7 7 Naked Turns . | . . . Heaviest Build 49 | 14 29 49 Greatest Support 40 | 20 20 40 Greatest Overweight (x) 13 | 1 1 13 Average Overweight (x) 1 | . . 1 Largest Inventory Capacity 25 | 8 15 25 Average Capacity 17 | 5 9 21 Most Carried 14 | 5 4 14 Average Carried 3 | 2 3 4 Final Capacity 25 | 8 15 25 Final Carried 4 | 2 4 4 Class Distribution -------------------- 100% | Mutant Dominant Class ---------------- Mutant | -10/Materials Mutant | -10/Subcaves Resources | -11 -10 -10 ----------- Run | Yrd Mat Sub Matter Collected 327 | 272 9 46 Remotely 113 | 103 9 1 Salvage Created 245 | 67 56 122 Parts 17 | 3 6 8 Haulers Intercepted . | . . . Recyclers Shooed . | . . . Parts Field Recycled . | . . . Retrieved Matter . | . . . Parts Self-Destructed 13 | . . 13 Prevented . | . . . Kills | -11 -10 -10 ------- Run | Yrd Mat Sub Combat Hostiles Destroyed 3 | . . 3 Guns 3 | . . 3 Classes Destroyed 3 | 1 1 1 Recycler 1 | 1 . . Watcher 2 | . 2 . Subdweller 3 | . . 3 Best Kill Streak 2 | 1 2 1 Combat Bots Only 1 | . . 1 Max Kills in Single Turn 1 | 1 1 1 Gunslinging . | . . . Exploded . | . . . Melee . | . . . Uniques/NPCs Destroyed . | . . . Combat | -11 -10 -10 -------- Run | Yrd Mat Sub Hostile Shots Fired 42 | . . 42 Missed 13 | . . 13 Hits 29 | . . 29 Projectile 29 | . . 29 Damage Taken 680 | . . 680 Core 265 | . . 265 Absorbed by Shields . | . . . Core Remaining (%) 100 | 100 . . Volleys Fired 21 | 2 4 15 Largest 2 | 2 2 2 Hottest 70 | 70 70 70 Shots Fired 38 | 4 8 26 Gun 38 | 4 8 26 Cannon . | . . . Launcher . | . . . Special . | . . . Kinetic 21 | 2 4 15 Thermal 14 | 2 4 8 Explosive . | . . . Electromagnetic 3 | . . 3 Robot Hit Streak 18 | 2 3 18 Robot Miss Streak 1 | 1 1 1 Penetration Max . | . . . Secondary Targets . | . . . Shots Hit Robots 27 | 3 3 21 Core Hits 13 | 2 2 9 Critical Kills . | . . . Critical Parts Destroyed . | . . . Critical Strikes 2 | . . 2 Burn 2 | . . 2 Melee Attacks . | . . . Impact . | . . . Slashing . | . . . Piercing . | . . . Sneak Attacks . | . . . Combat Hostiles . | . . . Follow-up Attacks . | . . . Damage Inflicted 310 | 27 60 223 Guns 306 | 27 56 223 Cannons . | . . . Explosions . | . . . Melee . | . . . Ramming 4 | . 4 . Kinetic 112 | 14 18 80 Thermal 138 | 13 38 87 Explosive . | . . . Electromagnetic 56 | . . 56 Impact . | . . . Slashing . | . . . Piercing . | . . . Highest Corruption . | . . . Average Corruption . | . . . Corruption Purged . | . . . Corruption Blocked . | . . . Overload Shots . | . . . Overflow Damage . | . . . Projectiles . | . . . Explosions . | . . . Melee . | . . . Knockbacks . | . . . Impact . | . . . Kinetic . | . . . Secondary . | . . . Self-Inflicted Damage . | . . . Shots . | . . . Rammed . | . . . Targets Rammed 2 | . 2 . Kicked 2 | . 2 . Crushed . | . . . Highest Temperature 60 | 40 60 4 Average Temperature 19 | 20 25 3 Received Heat Transfer 144 | . . 144 Siege Activations . | . . . Martial Activations . | . . . Shielding Activations . | . . . Robots Disrupted . | . . . Combat Hostiles . | . . . Robots Corrupted . | . . . Combat Hostiles . | . . . Parts Fried . | . . . Impact Corruptions . | . . . Robots Melted . | . . . Combat Hostiles . | . . . Parts Melted 2 | . . 2 Heat Transferred 555 | 37 111 407 Parts Sabotaged . | . . . Parts Stolen . | . . . Parts Stripped . | . . . Power Chain Reactions . | . . . Alert | -11 -10 -10 ------- Run | Yrd Mat Sub Maximum Alert Level . | . . . Low Security (%) 100 | 100 100 . Level 1 . | . . . Level 2 . | . . . Level 3 . | . . . Level 4 . | . . . Level 5 . | . . . High Security . | . . . Max Security . | . . . Peak Influence 14 | 5 14 . Initial . | . . . Average . | . . . Influence Increases 19 | 5 14 . Destroy 0b10 Robot/NC 15 | 5 10 . Destroy Leader 4 | . 4 . Influence Decreases 19 | 5 14 . Time Decay 19 | 5 14 . Squads Dispatched 2 | . 2 . Investigation 1 | . 1 . Extermination . | . . . Reinforcement 1 | . 1 . Assault . | . . . Garrison . | . . . Intercept . | . . . Searches Triggered . | . . . Construction Impeded . | . . . Haulers Reinforced . | . . . Active Scanning Responses . | . . . Cargo Convoy Interrupts . | . . . Stealth | -11 -10 -10 --------- Run | Yrd Mat Sub Distress Signals 1 | . 1 . Communications Jammed . | . . . Distress Signals . | . . . Times Spotted 11 | . 4 7 Peak Tracking Total 5 | . 3 5 Tactical Retreats . | . . . Traps | -11 -10 -10 ------- Run | Yrd Mat Sub Traps Triggered . | . . . Indirectly . | . . . Trap Hack Attempts . | . . . Triggered . | . . . Disarmed . | . . . Reprogrammed . | . . . Reused . | . . . Traps Extracted . | . . . Installed . | . . . Triggered . | . . . Machines | -11 -10 -10 ---------- Run | Yrd Mat Sub Machines Disabled . | . . . Max in Single Turn . | . . . Machines Repaired . | . . . Machines Dismantled . | . . . Machines Sabotaged . | . . . Overloaded Fab Kills . | . . . Hacking | -11 -10 -10 --------- Run | Yrd Mat Sub Machines Accessed . | . . . Terminals . | . . . Fabricators . | . . . Repair Stations . | . . . Recycling Units . | . . . Scanalyzers . | . . . Garrison Access . | . . . Total Hacks . | . . . Successful . | . . . Failed . | . . . Catastrophic . | . . . Database Lockouts . | . . . Manual . | . . . Terminals . | . . . Fabricators . | . . . Repair Stations . | . . . Recycling Units . | . . . Scanalyzers . | . . . Garrison Access . | . . . Terminal Hacks . | . . . Fabricator Hacks . | . . . Repair Station Hacks . | . . . Recycling Unit Hacks . | . . . Scanalyzer . | . . . Garrison Access Hacks . | . . . Unauthorized Hacks . | . . . Terminals . | . . . Fabricators . | . . . Repair Stations . | . . . Recycling Units . | . . . Scanalyzers . | . . . Garrison Access . | . . . Data Cores Recovered . | . . . Used . | . . . Hacking Detections . | . . . Full Trace Events . | . . . Feedback Events . | . . . Feedback Blocked . | . . . Robot Schematics Acquired . | . . . Robots Built . | . . . Authchips . | . . . Time . | . . . Total Robot Build Rating . | . . . Part Schematics Acquired . | . . . Parts Built . | . . . Authchips . | . . . Time . | . . . Total Part Build Rating . | . . . Parts Repaired . | . . . Time . | . . . Parts Recycled . | . . . Recycled Matter . | . . . Retrieved Matter . | . . . Retrieved Components . | . . . Parts Scanalyzed . | . . . Part Schematics Acquired . | . . . Parts Damaged . | . . . Bothacking | -11 -10 -10 ------------ Run | Yrd Mat Sub Used RIF Installer . | . . . Robots Hacked . | . . . Non-combat . | . . . Combat . | . . . Robot Hacks Applied . | . . . Relay Couplers Released . | . . . Fabnet Peak Effective % . | . . . Robots Rewired . | . . . Allies Hacked . | . . . Hacks Repelled . | . . . Allies | -11 -10 -10 -------- Run | Yrd Mat Sub Total Allies . | . . . Largest Group . | . . . Highest-Rated Group . | . . . Highest-Rated Ally . | . . . Total Orders . | . . . Ally Attacks . | . . . Total Damage . | . . . Kills . | . . . Allies Corrupted . | . . . Allies Melted . | . . . Intel | -11 -10 -10 ------- Run | Yrd Mat Sub Active Infowar (turns) . | . . . Robot Analysis Total . | . . . Derelict Logs Recovered . | . . . Drone Launches . | . . . Drone Recoveries . | . . . Exploration | -11 -10 -10 ------------- Run | Yrd Mat Sub Turns Passed 1074 | 78 282 714 Spaces Moved 674 | 51 172 451 Core 19 | 18 . 1 Treads . | . . . Legs 297 | 33 172 92 Wheels 358 | . . 358 Hover . | . . . Flight . | . . . Fastest Speed 50 | 50 120 120 Average Speed 136 | 96 135 141 Slowest Speed 700 | 120 190 700 Overloaded Moves . | . . . Propulsion Burnouts . | . . . Robots Hopped . | . . . Potential Cave-ins . | . . . Cave-ins Triggered . | . . . Exploration Rate (%) 21 | 4 40 21 Regions Visited 2 Branch Regions 1 Pre-discovered Areas 1 | . . 1 Known Exits Taken . | . . . Unknown Exits Taken 2 | 1 1 . Scrap Searched 3 | . . 3 Spaces Dug . | . . . Terrain Destroyed . | . . . Melee . | . . . Projectile . | . . . AOE . | . . . Terrain Rammed . | . . . Walls Destroyed . | . . . Machines Disabled . | . . . Actions | -11 -10 -10 --------- Run | Yrd Mat Sub Total 804 | 79 213 512 Wait 55 | . 33 22 Move 672 | 50 171 451 Hop . | . . . Pick Up 26 | 14 2 10 Fast Attach 1 | 1 . . Attach 7 | 6 . 1 Detach . | . . . Swap 4 | . 1 3 Drop 16 | 6 . 10 Fire 21 | 2 4 15 Melee . | . . . Ram . | . . . Kick 2 | . 2 . Crush . | . . . Escape Stasis . | . . . Rewire . | . . . Trap . | . . . Miscellaneous . | . . . Route ------- -11/Scrapyard -10/Materials (discovered 2 exits: [*Min] / [*Sub]) -10/Subcaves (discovered 1 exit: [Scr]) History --------- Turn | Location | Event 10 | -11/Scrapyard | Discovered new exit (range 16) 79 | -11/Scrapyard | Entered Materials 80 | -10/Materials | Met a group of wandering Federalists 196 | -10/Materials | Discovered new exit (range 11) 304 | -10/Materials | Build established: Mutant 347 | -10/Materials | Discovered new exit (range 8) 361 | -10/Materials | Entered Subcaves 362 | -10/Subcaves | Continued accompanying wandering Federalists (3) 362 | -10/Subcaves | Approached by a straggling Scientist 398 | -10/Subcaves | Learned location of Zion (-6) 398 | -10/Subcaves | Met a Zionite searching for "candidates" 535 | -10/Subcaves | Lost 3 allies 711 | -10/Subcaves | Core integrity fell below 50% 1011 | -10/Subcaves | A Subdweller sparked back to life 1011 | -10/Subcaves | A Subdweller sparked back to life 1014 | -10/Subcaves | Shifting Twisted Machinery released Shrapnel Trap 1041 | -10/Subcaves | Shifting Twisted Machinery released Mak. Flight Unit 1044 | -10/Subcaves | Shifting Twisted Machinery released Multitool 1046 | -10/Subcaves | Ambushed by Subdwellers from Twisted Machinery 1073 | -10/Subcaves | Core integrity fell below 20% 1075 | -10/Subcaves | Destroyed by NP-KCC(R) with Subdweller Laser Last Messages --------------- 00726_ Acquired Scrap Shield Fragment. 00729_ Searching scrap... 00729_ Found Riot Gun. 00729_ Found Sub. Beam Cannon. 00729_ Found 35 Matter. 00731_ Acquired Riot Gun. 00734_ Acquired 10 matter. 00809_ Subatomizers dissect the Sub. Beam Cannon. 00901_ 8X-FNP(u) deconstructs Twisted Machinery. 01011_ TE-9CN(R) creaks and sparks as it begins to move. 01011_ VV-B5M(R) creaks and sparks as it begins to move. Shrapnel Trap falls loose from the Twisted Machinery. 01016_ 8X-FNP(u) deconstructs Twisted Machinery. Mak. Flight Unit falls loose from the Twisted Machinery. Multitool falls loose from the Twisted Machinery. 01046_ NP-KCC(R) emerges from the Twisted Machinery. 01063_ Riot Gun destroyed. 01067_ Sub. Monowheel destroyed. 01069_ Ion Engine destroyed. 01071_ EL-ZDD(R) destroyed. Map ----- +----------------------------------------------------+ | #?????????###???????????????????????????????????? | | #?????##### #???????????????????????????????????? | | ##?????# #???????????????????????????????????? | | #?????## #???????????????????????????????????? | | ##???## #???????????????????????????????????? | | ##### ##???????????????????????????????????? | | ####????????????????????????????????????? | | ##???????????????????????????????????????? | | ## ###????????????????????????????????????????? | | ### #??????????????????????????????????????????? | | ### ##??????????????????????????????????????????? | | ##??????????????????????????????????????????? | | #??????????????????????????????????????????? | | ## ##??????????????????????????????????????????? | | ####???????????????????????????????????????????? | | ##???????????????????????????????????????????? | | " ##??????????????????????????????????????????? | | " #??????????????????????????????????????????? | | " ""##????????????????????????????????????>?????? | | # "####?????????????????????????????????????????? | | ###### ##????????????????????????????????????????? | | #??## &#??????????##??#####?????????????????????? | | #?##" "#?????????##"### ##???? #??????????????? | | ###"" #?##????###" "R" "#???""#??????????????? | | # ""#?## ##??""""" R #??? #???????????????? | | ## #??# "#??# "" R*@##? |##??????????????? | | #?## """#??#" =""R%##? "" ##?????????????? | | # ### ""#???## """ =& # " #?????????????? | | ### "" "#?????### #??????????????????? | | ?# ""##???????# ##??????????????????? | | ?# ""##???????# # ###???????????????????? | | "" ### ""######### ####?????????????????????? | | """## # # # # # #???????????????????????? | | ###### ##???????????????????????? | | ###????## # ## ### ####????????????????????????? | | ????????#########?####???????????????????????????? | | ?????????????????????????????????????????????????? | | ?????????????????????????????????????????????????? | | ?????????????????????????????????????????????????? | | ?????????????????????????????????????????????????? | | ?????????????????????????????????????????????????? | | ?????????????????????????????????????????????????? | | ?????????????????????????????????????????????????? | | ?????????????????????????????????????????????????? | | ?????????????????????????????????????????????????? | | ?????????????????????????????????????????????????? | | ?????????????????????????????????????????????????? | | ?????????????????????????????????????????????????? | | ?????????????????????????????????????????????????? | | ?????????????????????????????????????????????????? | +----------------------------------------------------+ Best States ------------- Heat Dissipation 25 Energy Generation 10 Energy Capacity 250 Matter Stores 300 Matter Capacity 300 Sight Range 16 Terrain Scan Density 10 Evasion (%) 55 Item Schematics ----------------- None Robot Schematics ------------------ None Fabricated ------------ Nothing Repaired ---------- Nothing Alien Tech Used ----------------- None Achievements -------------- None Challenges ------------ None Game ------ Seed ThermicRecyclingTriangulator Manual? 0 Play Time 00:13:57 Cumulative 35.0 hours Start 2025.10.16 @ 00:23:58 End 2025.10.16 @ 00:38:02 Sessions 1 Manual Loads 0 Difficulty Rogue Special Mode None Game No. 62 Rogue 62 Adventurer 0 Explorer 0 Win Type - Total 0 Types 0/0/0/0/0/0/0/0/0/0 Lore% 15 Gallery% 18 Achievement% 19 Wizard Run 0 Options --------- Layout 0 ASCII 0 Keyboard 0 Movement Mouse Keybinds 0 Fullscreen 1 Font 24/Smallcaps Map View 76x50 Zoom Use 0% Tactical HUD 1 Map Filters NONE Filters NONE Steam 1 RUN: 27f25501-cb7d-4235-9164-c27839f3f5c9